fUST/lending_fUST_20240228
["ID","MTS","AMOUNT","RATE_DAILY","PERIOD"]
[315472964,1709065846659,-129.06272767,0.00019178,2]
[315472965,1709065846668,-67.67316595,0.00019178,2]
[315472967,1709066362027,-1000.0,0.00018254,2]
[315472968,1709066363912,-1000.0,0.00018254,2]
[315472969,1709066401039,-428.40086588,0.00018253,2]
[315472970,1709066401064,-71.59913412,0.00018254,2]
[315472972,1709066571908,503.26123642,0.00021917,30]
[315473029,1709067031753,-159.81994913,0.00018253,2]
[315473031,1709067031763,-210.32922,0.00018254,2]
[315473033,1709067031773,-1690.2937372,0.00018254,2]
[315473035,1709067031783,-171.875,0.00019078,2]
[315473037,1709067031793,-615.48209367,0.000191,2]
[315473123,1709067037819,-1007.18919689,0.000191,2]
[315473125,1709067037832,-568.71,0.000191,2]
[315473127,1709067037844,-323.67,0.000191,2]
[315473225,1709067046153,-824.77473951,0.000191,2]
[315473226,1709067046162,-759.4,0.00019168,3]
[315473228,1709067046173,-735.47,0.00019178,2]
[315473229,1709067046182,-619.79,0.00019178,2]
[315473231,1709067046191,-500.0,0.00019178,2]
[315473233,1709067046200,-283.80874636,0.00019178,2]
[315473235,1709067046209,-546.12,0.00019178,2]
[315473237,1709067046219,-500.0,0.00019178,2]
[315473239,1709067046228,-500.0,0.00019178,2]
[315473241,1709067046238,-433.92265941,0.00019178,2]
[315473243,1709067046247,-181.84943336,0.00019178,2]
[315473245,1709067046256,-500.0,0.00019178,2]
[315473247,1709067046265,-500.0,0.00019178,2]
[315473249,1709067046275,-502.70298707,0.00019178,2]
[315473251,1709067046284,-155.0,0.00019178,2]
[315473253,1709067046294,-500.0,0.00019178,2]
[315473255,1709067046303,-500.0,0.00019178,2]
[315473257,1709067046313,-500.0,0.00019178,2]
[315473259,1709067046324,-500.0,0.00019178,2]
[315473261,1709067046335,-439.23108346,0.00019178,2]
[315473263,1709067046344,-500.0,0.00019178,2]
[315473264,1709067046353,-532.4,0.00019178,2]
[315473266,1709067046363,-500.0,0.00019178,2]
[315473267,1709067046374,-500.27804814,0.00019178,2]
[315473268,1709067046383,-1038.07,0.00019178,2]
[315473269,1709067046392,-500.0,0.00019178,2]
[315473270,1709067046403,-500.0,0.00019178,2]
[315473271,1709067046412,-500.0,0.00019178,2]
[315473272,1709067046423,-500.0,0.00019178,2]
[315473273,1709067046432,-500.0,0.00019178,2]
[315473274,1709067046441,-1199.32,0.00019178,2]
[315473275,1709067046450,-500.0,0.00019178,2]
[315473276,1709067046459,-1041.68,0.00019178,2]
[315473277,1709067046469,-1306.56,0.00019178,2]
[315473278,1709067046480,-500.0,0.00019178,2]
[315473279,1709067046491,-500.0,0.00019178,2]
[315473280,1709067046500,-593.08,0.00019178,2]
[315473281,1709067046510,-524.67,0.00019178,2]
[315473282,1709067046520,-563.48,0.00019178,2]
[315473283,1709067046529,-500.0,0.00019178,2]
[315473284,1709067046539,-1844.69,0.00019178,2]
[315473285,1709067046548,-569.5,0.00019178,2]
[315473286,1709067046558,-1349.37,0.00019178,2]
[315473287,1709067046568,-517.68,0.00019178,2]
[315473288,1709067046577,-500.0,0.00019178,2]
[315473289,1709067046586,-500.0,0.00019178,2]
[315473290,1709067046595,-2345.56,0.00019178,2]
[315473291,1709067046604,-1906.38,0.00019178,2]
[315473292,1709067046614,-9126.53,0.00019178,2]
[315473293,1709067046623,-539.03,0.00019178,2]
[315473294,1709067046632,-500.0,0.00019178,2]
[315473295,1709067046641,-1840.2,0.00019178,2]
[315473296,1709067046651,-500.0,0.00019178,2]
[315473297,1709067046660,-4390.19,0.00019178,2]
[315473298,1709067046670,-500.0,0.00019178,2]
[315473299,1709067046682,-500.0,0.00019178,2]
[315473300,1709067046691,-500.0,0.00019178,2]
[315473301,1709067046701,-500.0,0.00019178,2]
[315473302,1709067046709,-213.16828129,0.00019178,2]
[315473303,1709067046719,-13569.8523945,0.00019178,2]
[315473304,1709067046734,-4366.5076055,0.00019178,2]
[315473305,1709067046744,-3177.79,0.00019178,2]
[315473306,1709067046753,-500.0,0.00019178,2]
[315473307,1709067046763,-630.18,0.00019178,2]
[315473308,1709067046772,-500.0,0.00019178,2]
[315473309,1709067046781,-500.0,0.00019178,2]
[315473310,1709067046790,-500.0,0.00019178,2]
[315473311,1709067046799,-500.0,0.00019178,2]
[315473312,1709067046809,-1566.09,0.00019178,2]
[315473313,1709067046922,-500.0,0.00019178,2]
[315473314,1709067046934,-1180.94,0.00019178,2]
[315473315,1709067046943,-3266.32,0.00019178,2]
[315473316,1709067046952,-4917.21,0.00019178,2]
[315473317,1709067046962,-500.0,0.00019178,2]
[315473318,1709067046971,-1271.02,0.00019178,2]
[315473319,1709067046981,-500.0,0.00019178,2]
[315473320,1709067046990,-464.57165753,0.00019178,2]
[315473321,1709067046999,-594.46,0.00019178,2]
[315473322,1709067047009,-2543.27,0.00019178,2]
[315473323,1709067047019,-1827.82,0.00019178,2]
[315473324,1709067047028,-6663.08042255,0.00019178,2]
[315473325,1709067047043,-7818.46957745,0.00019178,2]
[315473326,1709067047052,-2966.98,0.00019178,2]
[315473327,1709067047062,-2820.61,0.00019178,2]
[315473328,1709067047071,-500.0,0.00019178,2]
[315473329,1709067047080,-2390.53,0.00019178,2]
[315473330,1709067047089,-500.0,0.00019178,2]
[315473331,1709067047099,-584.14,0.00019178,2]
[315473332,1709067047109,-617.38,0.00019178,2]
[315473333,1709067047119,-500.0,0.00019178,2]
[315473334,1709067047129,-1990.14,0.00019178,2]
[315473335,1709067047139,-740.23,0.00019178,2]
[315473336,1709067047150,-500.0,0.00019178,2]
[315473337,1709067047159,-170.756656,0.00019178,2]
[315473338,1709067047169,-166.666666,0.00019178,2]
[315473339,1709067047181,-500.0,0.00019308,2]
[315473340,1709067047191,-405.71273783,0.00019352,2]
[315473341,1709067047200,-500.0,0.00019438,2]
[315473342,1709067047209,-500.0,0.00019451,2]
[315473343,1709067047218,-500.0,0.00019451,2]
[315473344,1709067047227,-735.47,0.00019452,2]
[315473345,1709067047236,-619.79,0.00019452,2]
[315473346,1709067047246,-500.0,0.00019452,2]
[315473347,1709067047255,-500.0,0.00019452,2]
[315473348,1709067047264,-532.4,0.00019452,2]
[315473349,1709067047274,-581.16057071,0.00019452,2]
[315473350,1709067047284,-1038.07,0.00019452,2]
[315473351,1709067047294,-500.0,0.00019452,2]
[315473352,1709067047303,-500.0,0.00019452,2]
[315473353,1709067047312,-500.0,0.00019452,2]
[315473354,1709067047323,-500.0,0.00019452,2]
[315473355,1709067047335,-1199.32,0.00019452,2]
[315473356,1709067047344,-500.0,0.00019452,2]
[315473357,1709067047354,-1041.68,0.00019452,2]
[315473358,1709067047364,-1306.56,0.00019452,2]
[315473359,1709067047374,-500.0,0.00019452,2]
[315473360,1709067047385,-151.0,0.00019452,2]
[315473361,1709067047395,-197.73073188,0.00019452,2]
[315473362,1709067047404,-593.08,0.00019452,2]
[315473363,1709067047414,-524.67,0.00019452,2]
[315473364,1709067047425,-563.48,0.00019452,2]
[315473365,1709067047438,-500.0,0.00019452,2]
[315473366,1709067047447,-1844.69,0.00019452,2]
[315473367,1709067047457,-569.5,0.00019452,2]
[315473368,1709067047466,-1349.37,0.00019452,2]
[315473369,1709067047477,-500.0,0.00019452,2]
[315473370,1709067047487,-472.33151374,0.00019452,2]
[315473371,1709067047496,-2345.56,0.00019452,2]
[315473372,1709067047506,-1906.38,0.00019452,2]
[315473373,1709067047515,-9126.53,0.00019452,2]
[315473374,1709067047524,-539.03,0.00019452,2]
[315473375,1709067047533,-1840.2,0.00019452,2]
[315473376,1709067047543,-500.0,0.00019452,2]
[315473377,1709067047552,-4390.19,0.00019452,2]
[315473378,1709067047562,-500.0,0.00019452,2]
[315473379,1709067047574,-500.0,0.00019452,2]
[315473380,1709067047585,-500.0,0.00019452,2]
[315473381,1709067047594,-500.0,0.00019452,2]
[315473382,1709067047604,-17936.36,0.00019452,2]
[315473383,1709067047614,-3177.79,0.00019452,2]
[315473384,1709067047623,-500.0,0.00019452,2]
[315473385,1709067047632,-630.18,0.00019452,2]
[315473386,1709067047641,-500.0,0.00019452,2]
[315473387,1709067047650,-1566.09,0.00019452,2]
[315473388,1709067047659,-1180.94,0.00019452,2]
[315473389,1709067047668,-3266.32,0.00019452,2]
[315473390,1709067047680,-4917.21,0.00019452,2]
[315473391,1709067047689,-1271.02,0.00019452,2]
[315473392,1709067047699,-500.0,0.00019452,2]
[315473393,1709067047707,-594.46,0.00019452,2]
[315473394,1709067047717,-2543.27,0.00019452,2]
[315473395,1709067047726,-1827.82,0.00019452,2]
[315473396,1709067047735,-14466.7790238,0.00019452,2]
[315473397,1709067047752,-14.7709762,0.00019452,2]
[315473398,1709067047761,-2966.98,0.00019452,2]
[315473399,1709067047771,-2820.61,0.00019452,2]
[315473400,1709067047781,-429.8,0.00019452,2]
[315473401,1709067047790,-2390.53,0.00019452,2]
[315473402,1709067047799,-500.0,0.00019452,2]
[315473403,1709067047808,-584.14,0.00019452,2]
[315473404,1709067047817,-617.38,0.00019452,2]
[315473405,1709067047826,-500.0,0.00019452,2]
[315473406,1709067047835,-1990.14,0.00019452,2]
[315473407,1709067047844,-740.23,0.00019452,2]
[315473408,1709067047853,-500.0,0.00019452,2]
[315473409,1709067047862,-150.316,0.00019482,2]
[315473410,1709067047872,-500.0,0.00019485,2]
[315473411,1709067047881,-9101.91362481,0.00019486,2]
[315473412,1709067047890,-2500.0,0.000195,2]
[315473413,1709067047900,-10813.46827745,0.00019519,2]
[315473414,1709067047908,-500.0,0.00019569,2]
[315473415,1709067047917,-405.71273782,0.00019614,2]
[315473416,1709067047927,-166.666666,0.00019627,2]
[315473417,1709067047937,-500.0,0.000197,2]
[315473418,1709067047946,-233.02061581,0.00019724,2]
[315473419,1709067047957,-160.0,0.00019725,2]
[315473420,1709067047967,-160.0,0.00019725,2]
[315473421,1709067047976,-176.04154671,0.00019725,2]
[315473422,1709067047987,-500.0,0.00019725,2]
[315473423,1709067047996,-500.0,0.00019725,2]
[315473424,1709067048005,-500.0,0.00019725,2]
[315473425,1709067048014,-735.47,0.00019726,2]
[315473426,1709067048028,-619.79,0.00019726,2]
[315473427,1709067048041,-500.0,0.00019726,2]
[315473428,1709067048054,-500.0,0.00019726,2]
[315473429,1709067048070,-532.4,0.00019726,2]
[315473430,1709067048082,-1038.07,0.00019726,2]
[315473431,1709067048092,-500.0,0.00019726,2]
[315473432,1709067048103,-500.0,0.00019726,2]
[315473433,1709067048116,-500.0,0.00019726,2]
[315473434,1709067048128,-443.88974679,0.00019726,2]
[315473435,1709067048141,-1199.32,0.00019726,2]
[315473436,1709067048153,-500.0,0.00019726,2]
[315473437,1709067048166,-1041.68,0.00019726,2]
[315473438,1709067048179,-1306.56,0.00019726,2]
[315473439,1709067048191,-500.0,0.00019726,2]
[315473440,1709067048202,-593.08,0.00019726,2]
[315473441,1709067048212,-524.67,0.00019726,2]
[315473442,1709067048224,-563.48,0.00019726,2]
[315473443,1709067048236,-500.0,0.00019726,2]
[315473444,1709067048247,-1844.69,0.00019726,2]
[315473445,1709067048259,-569.5,0.00019726,2]
[315473446,1709067048271,-1349.37,0.00019726,2]
[315473447,1709067048283,-500.0,0.00019726,2]
[315473448,1709067048295,-2345.56,0.00019726,2]
[315473449,1709067048307,-1906.38,0.00019726,2]
[315473450,1709067048321,-9126.53,0.00019726,2]
[315473451,1709067048332,-539.03,0.00019726,2]
[315473452,1709067048349,-1840.2,0.00019726,2]
[315473453,1709067048363,-500.0,0.00019726,2]
[315473454,1709067048375,-4390.19,0.00019726,2]
[315473455,1709067048387,-500.0,0.00019726,2]
[315473456,1709067048401,-500.0,0.00019726,2]
[315473457,1709067048412,-500.0,0.00019726,2]
[315473458,1709067048426,-500.0,0.00019726,2]
[315473459,1709067048438,-17936.36,0.00019726,2]
[315473460,1709067048449,-3177.79,0.00019726,2]
[315473461,1709067048462,-500.0,0.00019726,2]
[315473462,1709067048474,-630.18,0.00019726,2]
[315473463,1709067048487,-500.0,0.00019726,2]
[315473464,1709067048499,-1566.09,0.00019726,2]
[315473465,1709067048511,-1180.94,0.00019726,2]
[315473466,1709067048522,-3266.32,0.00019726,2]
[315473467,1709067048535,-4917.21,0.00019726,2]
[315473468,1709067048548,-1271.02,0.00019726,2]
[315473469,1709067048559,-500.0,0.00019726,2]
[315473470,1709067048568,-594.46,0.00019726,2]
[315473471,1709067048578,-1851.79375768,0.00019726,2]
[315473476,1709067312235,305.026747,0.00017974,2]
[315473478,1709067770518,305.026747,0.0001796,2]
[315473490,1709068111156,493.02749091,0.000192,6]
[315473498,1709068232786,210.3292206,0.00017933,2]
[315473734,1709068238008,-677.63039437,0.00018833,2]
[315473735,1709068238019,-159.81994913,0.00018834,2]
[315473736,1709068238028,-155.16292107,0.00018835,2]
[315473737,1709068238037,-281.47879286,0.00018836,2]
[315473738,1709068238046,-1591.62159516,0.00018837,2]
[315473739,1709068238055,-630.15024462,0.00018837,2]
[315473743,1709068241138,-1248.89593246,0.00018837,2]
[315473744,1709068241149,-640.33992365,0.00018891,2]
[315473745,1709068241160,-1458.28634389,0.00018895,2]
[315473746,1709068241201,-1055.34082397,0.00018895,2]
[315473747,1709068241212,-3039.110956,0.00018898,2]
[315473748,1709068241226,-1000.0,0.00018898,2]
[315473749,1709068241240,-188.88253248,0.00018898,2]
[315473750,1709068241250,-559.07775184,0.000189,2]
[315473751,1709068241261,-620.00175813,0.00018962,2]
[315473752,1709068241273,-8000.0,0.00018998,2]
[315473753,1709068241285,-500.0,0.00019178,2]
[315473754,1709068241298,-500.0,0.00019178,2]
[315473755,1709068241309,-500.0,0.00019178,2]
[315473756,1709068241318,-529.4798309,0.00019178,2]
[315473757,1709068241329,-500.0,0.00019178,2]
[315473758,1709068241339,-234.47375078,0.00019178,2]
[315473759,1709068241349,-500.0,0.00019178,2]
[315473760,1709068241359,-500.0,0.00019178,2]
[315473761,1709068241368,-500.0,0.00019178,2]
[315473762,1709068241378,-500.0,0.00019178,2]
[315473763,1709068241387,-500.0,0.00019178,2]
[315473764,1709068241398,-500.0,0.00019178,2]
[315473765,1709068241408,-605.07512948,0.00019178,2]
[315473766,1709068241418,-500.0,0.00019178,2]
[315473767,1709068241427,-500.0,0.00019178,2]
[315473768,1709068241437,-500.0,0.00019178,2]
[315473769,1709068241446,-500.0,0.00019178,2]
[315473770,1709068241456,-955.5,0.00019178,2]
[315473771,1709068241466,-500.0,0.00019178,2]
[315473772,1709068241476,-500.0,0.00019178,2]
[315473773,1709068241486,-500.0,0.00019178,2]
[315473774,1709068241496,-500.0,0.00019178,2]
[315473775,1709068241507,-500.0,0.00019178,2]
[315473776,1709068241516,-500.12350454,0.00019178,2]
[315473777,1709068241526,-487.95969851,0.00019178,2]
[315473778,1709068241536,-1104.64862472,0.00019178,2]
[315474824,1709069095176,1690.2937372,0.00017882,2]
[315474892,1709069432198,-1879.04617708,0.00018038,2]
[315474894,1709069432208,-2027.5579888,0.00018039,2]
[315474896,1709069432219,-222.32813394,0.00018043,2]
[315474898,1709069432228,-476.97,0.000189,2]
[315474900,1709069432238,-372.71850123,0.000189,2]
[315474902,1709069432248,-20288.08402353,0.00018999,2]
[315474904,1709069432257,-20221.80254158,0.00019,4]
[315474906,1709069432266,-500.0,0.00019178,2]
[315474908,1709069432276,-500.0,0.00019178,2]
[315474910,1709069432286,-500.0,0.00019178,2]
[315474913,1709069432295,-500.0,0.00019178,2]
[315474915,1709069432304,-500.0,0.00019178,2]
[315474918,1709069432314,-500.0,0.00019178,2]
[315474921,1709069432323,-542.31,0.00019178,2]
[315474925,1709069432333,-798.38,0.00019178,2]
[315474927,1709069432342,-500.0,0.00019178,2]
[315474930,1709069432352,-643.34817001,0.00019178,2]
[315474933,1709069432361,-151.0,0.00019178,2]
[315474936,1709069432370,-500.0,0.00019178,2]
[315474939,1709069432380,-155.0,0.00019178,2]
[315474942,1709069432390,-500.0,0.00019178,2]
[315474944,1709069432398,-500.0,0.00019178,2]
[315474946,1709069432407,-1049.41,0.00019178,2]
[315474948,1709069432416,-500.0,0.00019178,2]
[315474950,1709069432426,-500.0,0.00019178,2]
[315474952,1709069432435,-500.00000002,0.00019178,2]
[315474954,1709069432445,-911.47,0.00019178,2]
[315474956,1709069432454,-500.0,0.00019178,2]
[315474958,1709069432463,-35.56637668,0.00019178,2]
[315474997,1709069438099,-171.875,0.000189,2]
[315474999,1709069438110,-464.43362332,0.00019178,2]
[315475001,1709069438119,-500.0,0.00019178,2]
[315475003,1709069438128,-521.38,0.00019178,2]
[315475005,1709069438137,-500.0,0.00019178,2]
[315475007,1709069438147,-500.0,0.00019178,2]
[315475009,1709069438157,-500.0,0.00019178,2]
[315475011,1709069438166,-500.0,0.00019178,2]
[315475013,1709069438176,-500.0,0.00019178,2]
[315475015,1709069438185,-500.0,0.00019178,2]
[315475017,1709069438194,-500.0,0.00019178,2]
[315475019,1709069438203,-1675.45,0.00019178,2]
[315475021,1709069438212,-1824.3,0.00019178,2]
[315475023,1709069438221,-151.0,0.00019178,2]
[315475025,1709069438230,-501.08668541,0.00019178,2]
[315475027,1709069438240,-500.0,0.00019178,2]
[315475029,1709069438249,-500.0,0.00019178,2]
[315475031,1709069438258,-500.0,0.00019178,2]
[315475033,1709069438267,-1180.7,0.00019178,2]
[315475035,1709069438276,-284.39220468,0.00019178,2]
[315475037,1709069438285,-500.0,0.00019178,2]
[315475039,1709069438294,-500.0,0.00019178,2]
[315475041,1709069438303,-500.0,0.00019178,2]
[315475043,1709069438312,-500.0,0.00019178,2]
[315475045,1709069438322,-8193.18,0.00019178,2]
[315475047,1709069438331,-500.0,0.00019178,2]
[315475049,1709069438340,-143.16667059,0.00019178,2]
[315475066,1709069441458,-356.83332941,0.00019178,2]
[315475067,1709069441469,-2052.36,0.00019178,2]
[315475068,1709069441479,-1668.08,0.00019178,2]
[315475069,1709069441489,-158.76788744,0.00019178,2]
[315475070,1709069441499,-3880.14,0.00019178,2]
[315475071,1709069441508,-1610.18,0.00019178,2]
[315475072,1709069441518,-969.09,0.00019178,2]
[315475073,1709069441528,-500.0,0.00019178,2]
[315475074,1709069441537,-500.0,0.00019178,2]
[315475075,1709069441546,-187.26300048,0.00019178,2]
[315475076,1709069441555,-500.0,0.00019178,2]
[315475077,1709069441567,-500.0,0.00019178,2]
[315475078,1709069441576,-500.0,0.00019178,2]
[315475079,1709069441586,-500.0,0.00019178,2]
[315475080,1709069441596,-551.41,0.00019178,2]
[315475081,1709069441606,-2780.57,0.00019178,2]
[315475082,1709069441616,-10395.64455907,0.00019178,2]
[315475083,1709069441629,-6147.62544093,0.00019178,2]
[315475084,1709069441638,-500.0,0.00019178,2]
[315475085,1709069441647,-500.0,0.00019178,2]
[315475086,1709069441657,-500.0,0.00019178,2]
[315475087,1709069441665,-500.0,0.00019178,2]
[315475088,1709069441674,-248.09972513,0.00019178,2]
[315475089,1709069441684,-2858.03,0.00019178,2]
[315475090,1709069441694,-1370.33,0.00019178,2]
[315475091,1709069441703,-1112.15,0.00019178,2]
[315475092,1709069441714,-1033.33,0.00019178,2]
[315475093,1709069441724,-1156.6,0.00019178,2]
[315475094,1709069441733,-1675.5,0.00019178,2]
[315475095,1709069441743,-4302.55,0.00019178,2]
[315475096,1709069441752,-500.0,0.00019178,2]
[315475097,1709069441762,-520.15,0.00019178,2]
[315475098,1709069441772,-13619.08,0.00019178,2]
[315475099,1709069441782,-2585.56,0.00019178,2]
[315475100,1709069441791,-2254.17,0.00019178,2]
[315475101,1709069441802,-2902.8,0.00019178,2]
[315475102,1709069441811,-500.0,0.00019178,2]
[315475103,1709069441820,-2191.32,0.00019178,2]
[315475104,1709069441830,-556.3,0.00019178,2]
[315475105,1709069441839,-586.77,0.00019178,2]
[315475106,1709069441849,-402.03555916,0.00019178,2]
[315475107,1709069441859,-500.0,0.00019178,2]
[315475108,1709069441868,-678.54,0.00019178,2]
[315475109,1709069441878,-500.0,0.00019178,2]
[315475110,1709069441887,-1748.29,0.00019178,2]
[315475111,1709069441897,-500.0,0.00019178,2]
[315475112,1709069441906,-162.218823,0.00019178,2]
[315475113,1709069441916,-166.666666,0.00019178,2]
[315475114,1709069441926,-500.0,0.00019316,2]
[315475115,1709069441935,-500.0,0.00019351,2]
[315475116,1709069441945,-243.4276427,0.00019351,2]
[315475117,1709069441955,-37953.20697623,0.00019352,2]
[315475118,1709069441965,-500.0,0.00019451,2]
[315475119,1709069441976,-500.0,0.00019451,2]
[315475120,1709069441985,-500.0,0.00019451,2]
[315475121,1709069441994,-160.0,0.00019451,2]
[315475122,1709069442003,-160.0,0.00019451,2]
[315475123,1709069442012,-500.0,0.00019452,2]
[315475124,1709069442022,-500.0,0.00019452,2]
[315475125,1709069442031,-500.0,0.00019452,2]
[315475126,1709069442040,-500.0,0.00019452,2]
[315475127,1709069442049,-500.0,0.00019452,2]
[315475128,1709069442058,-500.0,0.00019452,2]
[315475129,1709069442068,-542.31,0.00019452,2]
[315475130,1709069442081,-798.38,0.00019452,2]
[315475131,1709069442090,-500.0,0.00019452,2]
[315475132,1709069442099,-314.25160559,0.00019452,2]
[315475133,1709069442108,-500.0,0.00019452,2]
[315475134,1709069442118,-1049.41,0.00019452,2]
[315475135,1709069442127,-500.0,0.00019452,2]
[315475136,1709069442136,-911.47,0.00019452,2]
[315475137,1709069442145,-199.18234607,0.00019452,2]
[315475138,1709069442156,-521.38,0.00019452,2]
[315475139,1709069442165,-500.0,0.00019452,2]
[315475140,1709069442174,-500.0,0.00019452,2]
[315475141,1709069442183,-1675.45,0.00019452,2]
[315475142,1709069442192,-500.0,0.00019452,2]
[315475143,1709069442202,-1180.7,0.00019452,2]
[315475144,1709069442213,-8193.18,0.00019452,2]
[315475145,1709069442222,-2052.36,0.00019452,2]
[315475146,1709069442231,-1668.08,0.00019452,2]
[315475147,1709069442240,-3880.14,0.00019452,2]
[315475148,1709069442250,-1610.18,0.00019452,2]
[315475149,1709069442260,-969.09,0.00019452,2]
[315475150,1709069442269,-236.20793069,0.00019452,2]
[315475151,1709069442279,-500.0,0.00019452,2]
[315475152,1709069442289,-500.0,0.00019452,2]
[315475153,1709069442299,-500.0,0.00019452,2]
[315475154,1709069442309,-551.41,0.00019452,2]
[315475155,1709069442318,-2780.57,0.00019452,2]
[315475156,1709069442327,-16543.27,0.00019452,2]
[315475157,1709069442337,-500.0,0.00019452,2]
[315475158,1709069442346,-500.0,0.00019452,2]
[315475159,1709069442356,-2858.03,0.00019452,2]
[315475160,1709069442365,-1370.33,0.00019452,2]
[315475161,1709069442374,-1112.15,0.00019452,2]
[315475162,1709069442383,-1033.33,0.00019452,2]
[315475163,1709069442392,-1156.6,0.00019452,2]
[315475164,1709069442401,-1675.5,0.00019452,2]
[315475165,1709069442411,-4302.55,0.00019452,2]
[315475166,1709069442420,-500.0,0.00019452,2]
[315475167,1709069442429,-520.15,0.00019452,2]
[315475168,1709069442439,-13619.08,0.00019452,2]
[315475169,1709069442448,-2585.56,0.00019452,2]
[315475170,1709069442457,-2254.17,0.00019452,2]
[315475171,1709069442467,-2902.8,0.00019452,2]
[315475172,1709069442476,-2191.32,0.00019452,2]
[315475173,1709069442485,-556.3,0.00019452,2]
[315475174,1709069442494,-586.77,0.00019452,2]
[315475175,1709069442503,-500.0,0.00019452,2]
[315475176,1709069442512,-678.54,0.00019452,2]
[315475177,1709069442521,-500.0,0.00019452,2]
[315475178,1709069442530,-1748.29,0.00019452,2]
[315475179,1709069442540,-500.0,0.00019456,2]
[315475180,1709069442550,-500.0,0.00019595,2]
[315475181,1709069442559,-243.42764269,0.00019613,2]
[315475183,1709069442568,-166.666666,0.00019627,2]
[315475185,1709069442578,-160.0,0.00019725,2]
[315475187,1709069442586,-415.6874877,0.00019725,2]
[315475188,1709069442596,-500.0,0.00019726,2]
[315475189,1709069442605,-500.0,0.00019726,2]
[315475190,1709069442614,-500.0,0.00019726,2]
[315475192,1709069442623,-500.0,0.00019726,2]
[315475193,1709069442632,-500.0,0.00019726,2]
[315475194,1709069442642,-500.0,0.00019726,2]
[315475195,1709069442651,-542.31,0.00019726,2]
[315475196,1709069442661,-798.38,0.00019726,2]
[315475197,1709069442670,-500.0,0.00019726,2]
[315475198,1709069442679,-416.75157953,0.00019726,2]
[315475199,1709069442688,-1049.41,0.00019726,2]
[315475200,1709069442698,-500.0,0.00019726,2]
[315475201,1709069442707,-911.47,0.00019726,2]
[315475202,1709069442717,-521.38,0.00019726,2]
[315475203,1709069442726,-500.0,0.00019726,2]
[315475204,1709069442735,-1675.45,0.00019726,2]
[315475205,1709069442744,-647.73856789,0.00019726,2]
[315475206,1709069442753,-1180.7,0.00019726,2]
[315475207,1709069442763,-8193.18,0.00019726,2]
[315475208,1709069442773,-2052.36,0.00019726,2]
[315475209,1709069442782,-1668.08,0.00019726,2]
[315475210,1709069442791,-3880.14,0.00019726,2]
[315475211,1709069442800,-1610.18,0.00019726,2]
[315475212,1709069442809,-969.09,0.00019726,2]
[315475213,1709069442819,-500.0,0.00019726,2]
[315475214,1709069442828,-500.0,0.00019726,2]
[315475215,1709069442838,-500.0,0.00019726,2]
[315475216,1709069442847,-551.41,0.00019726,2]
[315475217,1709069442857,-2780.57,0.00019726,2]
[315475218,1709069442866,-16543.27,0.00019726,2]
[315475219,1709069442875,-500.0,0.00019726,2]
[315475220,1709069442885,-500.0,0.00019726,2]
[315475221,1709069442893,-2858.03,0.00019726,2]
[315475222,1709069442902,-1370.33,0.00019726,2]
[315475223,1709069442911,-1112.15,0.00019726,2]